bitfinex-derivatives/quotes_SOLF0:USTF0_20250110
["timestamp","ask_amount","ask_price","bid_price","bid_amount"]
[1736495142661,2.5956,192.66,192.6,4.1455]
[1736495143060,2.5956,192.66,192.6,1.5491]
[1736495143254,2.5957,192.65,192.6,1.5491]
[1736495143463,16.53351587,192.7,192.6,1.5491]
[1736495143658,16.53351587,192.67,192.56,28.42427275]
[1736495143866,16.53351587,192.64,192.56,28.42427275]
[1736495144659,16.53351587,192.64,192.53,1.4913]
[1736495145062,2.5964,192.61,192.54,2.5972]
[1736495145460,16.53351587,192.67,192.53,1.4913]
[1736495145660,16.53351587,192.64,192.54,2.5971]
[1736495145861,16.53351587,192.64,192.53,1.4913]
[1736495146560,5.08,192.63,192.53,1.4913]
[1736495146757,2.5967,192.58,192.53,1.4913]
[1736495146957,16.53351587,192.61,192.5,62.7110411]
[1736495147155,16.53351587,192.58,192.47,8.65759377]
[1736495147360,16.53351587,192.58,192.47,11.25569377]
[1736495147559,16.53351587,192.58,192.47,8.65759377]
[1736495147960,16.53351587,192.58,192.47,1.5598]
[1736495148367,2.5976,192.51,192.47,1.5598]
[1736495148966,16.53351587,192.58,192.47,4.1579]
[1736495149164,16.53351587,192.55,192.41,1.6301]
[1736495149363,16.53351587,192.52,192.41,1.6301]
[1736495149563,2.5979,192.49,192.41,4.229]
[1736495149764,5.1,192.54,192.41,1.6301]
[1736495152369,2.5979,192.5,192.43,2.5987]
[1736495152570,16.53351587,192.52,192.41,1.6301]
[1736495152968,2.5981,192.48,192.41,4.229]
[1736495153168,16.53351587,192.52,192.4,1.6073]
[1736495154672,2.5979,192.49,192.42,2.5988]
[1736495155064,2.5972,192.54,192.45,2.5984]
[1736495155271,10.36682028,192.56,192.44,10.36682028]
[1736495155874,2.5973,192.53,192.47,2.5981]
[1736495156279,10.36682028,192.56,192.44,10.36682028]
[1736495156480,2.5968,192.57,192.47,10.36682028]
[1736495156668,5.1,192.58,192.41,1.6241]
[1736495156871,5.1,192.58,192.43,10.36682028]
[1736495157169,2.5975,192.53,192.46,2.5983]
[1736495157775,2.5972,192.55,192.44,16.5887863]
[1736495158068,5.1,192.59,192.44,16.5887863]
[1736495158274,2.5973,192.53,192.41,18.2128863]
[1736495158465,16.5887863,192.57,192.41,18.2128863]
[1736495158664,2.5976,192.52,192.46,2.5983]
[1736495158866,16.5887863,192.57,192.41,18.2128863]
[1736495159075,16.5887863,192.54,192.41,1.6241]
[1736495159574,16.5887863,192.57,192.41,18.2128863]
[1736495159771,2.5974,192.53,192.48,2.598]
[1736495159978,16.5887863,192.57,192.41,18.2128863]
[1736495160174,5.1,192.59,192.44,16.5887863]
[1736495161075,2.5974,192.53,192.46,2.5982]
[1736495161272,5.26,192.7,192.5,16.5887863]
[1736495161479,15.59,192.74,192.56,2.5969]
[1736495161480,2.5961,192.63,192.56,2.5969]
[1736495161677,2.5961,192.63,192.51,4.7457]
[1736495161877,16.5887863,192.67,192.51,4.7457]
[1736495162080,16.5887863,192.64,192.51,4.7457]
[1736495163180,2.5964,192.6,192.54,2.5972]
[1736495163777,2.5964,192.6,192.51,4.7457]
[1736495163981,2.5964,192.6,192.55,2.5971]
[1736495164386,0.8134,192.69,192.53,16.5887863]
[1736495164581,0.8134,192.69,192.51,4.7457]
[1736495164582,16.5887863,192.72,192.56,16.5887863]
[1736495165071,16.5887863,192.66,192.52,7.09779377]
[1736495165673,16.5887863,192.66,192.53,4.79936398]
[1736495165877,16.5887863,192.63,192.53,4.79936398]
[1736495166383,16.5887863,192.63,192.52,31.02167275]
[1736495166780,2.5967,192.58,192.52,28.42427275]
[1736495166980,16.5887863,192.6,192.51,1.5532]
[1736495167180,16.5887863,192.6,192.49,28.42427275]
[1736495167585,16.5887863,192.57,192.49,28.42427275]
[1736495167785,16.5887863,192.57,192.47,47.75877943]
[1736495168586,5.24,192.64,192.46,49.27087943]
[1736495168793,16.5887863,192.6,192.46,49.27087943]
[1736495169089,16.5887863,192.57,192.46,49.27087943]
[1736495169290,16.5887863,192.57,192.46,47.75877943]
[1736495169588,16.5887863,192.57,192.48,7.09779377]
[1736495169891,5.24,192.56,192.48,7.09779377]
[1736495170080,2.5974,192.53,192.48,7.09779377]
[1736495170279,2.5974,192.53,192.47,7.09779377]
[1736495170690,2.5975,192.52,192.47,7.09779377]
[1736495170992,16.5887863,192.54,192.47,7.09779377]
[1736495171190,16.5887863,192.54,192.45,47.38638105]
[1736495171593,16.5887863,192.51,192.45,47.38638105]
[1736495172188,16.5887863,192.51,192.41,7.09779377]
[1736495172683,2.5979,192.5,192.43,2.5986]
[1736495172886,5.24,192.56,192.41,23.68658007]
[1736495173089,5.24,192.56,192.42,3.0339]
[1736495173789,16.5887863,192.54,192.42,3.0339]
[1736495173987,16.5887863,192.48,192.46,7.09779377]
[1736495174293,2.5981,192.47,192.46,7.09779377]
[1736495174489,5.2,192.48,192.46,7.09779377]
[1736495174689,5.22,192.53,192.46,7.09779377]
[1736495174895,16.5887863,192.54,192.46,7.09779377]
[1736495175186,21.8087863,192.54,192.41,28.42427275]
[1736495175782,2.5979,192.49,192.42,2.5988]
[1736495175984,2.5979,192.49,192.44,28.42427275]
[1736495176194,2.598,192.48,192.44,28.42427275]
[1736495176394,16.5887863,192.48,192.44,28.42427275]
[1736495176591,16.5887863,192.48,192.45,2.927e-05]
[1736495176788,2.5984,192.45,192.43,56.87061062]
[1736495176994,16.5887863,192.44,192.43,56.87061062]
[1736495177494,2.5988,192.42,192.38,56.87061062]
[1736495177988,5.2,192.45,192.38,56.87061062]
[1736495178195,16.5887863,192.5,192.38,56.87061062]
[1736495178396,5.2,192.49,192.39,2.5991]
[1736495178693,16.5887863,192.47,192.38,56.87061062]
[1736495178894,16.5887863,192.47,192.37,3.196]
[1736495179089,5.2,192.49,192.37,3.196]
[1736495179295,2.5987,192.43,192.37,3.196]
[1736495179493,16.5887863,192.47,192.37,3.196]
[1736495180493,2.5984,192.45,192.38,2.5992]
[1736495180795,16.5887863,192.47,192.37,3.196]
[1736495181291,2.5985,192.44,192.37,5.7955]
[1736495181489,16.5887863,192.47,192.37,3.196]
[1736495181685,2.5985,192.44,192.37,3.196]
[1736495181889,16.5887863,192.47,192.37,3.196]
[1736495182591,2.5988,192.42,192.37,3.196]
[1736495182993,21.7487863,192.41,192.3,75.32906305]
[1736495183197,2.5996,192.37,192.3,61.06751062]
[1736495183498,21.7487863,192.41,192.3,58.46711062]
[1736495183992,5.16,192.41,192.3,58.46711062]
[1736495184186,5.16,192.41,192.3,18.1852863]
[1736495184496,2.5984,192.45,192.38,2.5994]
[1736495184793,21.7487863,192.47,192.3,18.1852863]
[1736495185995,16.5887863,192.44,192.3,18.1852863]
[1736495186197,16.5887863,192.44,192.3,1.5965]
[1736495186398,2.5994,192.38,192.32,2.6]
[1736495186695,5.16,192.47,192.3,1.5965]
[1736495186696,16.5887863,192.41,192.3,1.5965]
[1736495186895,2.5996,192.36,192.3,1.5965]
[1736495187095,5.18,192.39,192.3,1.5965]
[1736495187591,16.5887863,192.38,192.29,1.5127]
[1736495187791,16.5887863,192.35,192.29,1.5127]
[1736495188000,16.5887863,192.38,192.29,1.5127]
[1736495188297,2.6001,192.33,192.29,1.5127]
[1736495188488,16.5887863,192.38,192.29,1.5127]
[1736495189292,2.5999,192.34,192.29,1.5127]
[1736495189796,2.5999,192.35,192.26,2.6009]
[1736495189989,16.5887863,192.38,192.26,2.6009]
[1736495190189,16.5887863,192.38,192.25,1.6284]
[1736495191101,2.6001,192.33,192.27,2.6008]
[1736495192500,2.6001,192.33,192.25,1.6284]
[1736495192704,16.5887863,192.38,192.26,2.601]
[1736495193000,2.6002,192.32,192.26,2.601]
[1736495193200,16.5887863,192.38,192.25,4.2295]
[1736495193401,16.5887863,192.35,192.25,4.2295]
[1736495193602,2.6003,192.31,192.25,4.2295]
[1736495194304,16.5887863,192.35,192.25,1.6284]
[1736495194501,5.14,192.37,192.25,1.6284]
[1736495194894,2.5997,192.36,192.3,2.6004]
[1736495195102,5.14,192.38,192.25,1.6284]
[1736495195305,0.8204,192.52,192.26,5.16]
[1736495195496,2.5984,192.46,192.34,16.5887863]
[1736495195702,22.5691863,192.52,192.35,4.7772]
[1736495195903,2.5979,192.49,192.41,2.599]
[1736495196206,2.5979,192.49,192.37,16.5887863]
[1736495196404,16.5887863,192.57,192.4,16.5887863]
[1736495196702,5.16,192.56,192.4,16.5887863]
[1736495197706,16.5887863,192.54,192.42,2.5987]
[1736495198006,16.5887863,192.54,192.37,16.5887863]
[1736495199708,2.5976,192.51,192.43,2.5986]
[1736495199907,2.5976,192.51,192.44,1.4853]
[1736495200105,16.5887863,192.54,192.44,1.4853]
[1736495201106,2.5976,192.51,192.44,1.4853]
[1736495201302,5.16,192.56,192.44,1.4853]
[1736495201507,21.7287863,192.57,192.45,2.9719]
[1736495203108,21.7287863,192.57,192.44,1.4853]
[1736495203109,16.5887863,192.51,192.44,1.4853]
[1736495203707,16.5887863,192.54,192.44,1.4853]
[1736495204314,2.5977,192.5,192.44,1.4853]
[1736495204713,16.5887863,192.54,192.44,1.4853]
[1736495205613,16.5887863,192.51,192.44,1.4853]
[1736495205907,5.14,192.57,192.38,2.5993]
[1736495205908,2.5985,192.45,192.38,2.5993]
[1736495206313,16.5887863,192.48,192.38,2.5993]
[1736495206510,16.5887863,192.48,192.37,1.6056]
[1736495206912,2.5987,192.43,192.37,1.6056]
[1736495208411,2.5987,192.43,192.37,4.2051]
[1736495210208,21.7087863,192.51,192.37,1.6056]
[1736495210412,16.5887863,192.51,192.37,1.6056]
[1736495210615,5.12,192.5,192.37,1.6056]
[1736495210915,2.5984,192.45,192.39,2.5992]
[1736495211112,16.5887863,192.48,192.37,1.6056]
[1736495211613,2.5987,192.44,192.37,4.2051]
[1736495212216,5.12,192.5,192.37,1.6056]
[1736495212510,21.7087863,192.51,192.37,1.6056]
[1736495212717,5.12,192.51,192.39,16.5887863]
[1736495213118,5.12,192.51,192.42,2.5987]
[1736495213418,5.12,192.56,192.43,1.5002]
[1736495213720,2.5972,192.55,192.48,2.598]
[1736495214219,2.5972,192.54,192.47,2.5981]
[1736495214817,16.5887863,192.57,192.44,1.5245]
[1736495216107,2.5972,192.54,192.47,2.5981]
[1736495217420,2.5973,192.53,192.47,2.5981]
[1736495218218,21.7087863,192.58,192.48,1.544]
[1736495218419,2.5975,192.52,192.48,1.544]
[1736495218822,16.5887863,192.55,192.44,1.5245]
[1736495219015,16.5887863,192.52,192.44,1.5245]
[1736495219916,2.5981,192.48,192.44,1.5245]
[1736495220219,16.5887863,192.52,192.44,1.5245]
[1736495220414,16.5887863,192.55,192.44,1.5245]
[1736495220723,16.5887863,192.58,192.44,1.5245]
[1736495221018,5.1,192.59,192.44,1.5245]
[1736495221809,2.5969,192.56,192.5,2.5976]
[1736495222009,16.5887863,192.61,192.45,16.5887863]
[1736495222221,17.4120863,192.64,192.45,16.5887863]
[1736495222414,17.4120863,192.64,192.52,2.5974]
[1736495222415,2.5965,192.6,192.52,2.5974]
[1736495222718,2.5965,192.6,192.53,3.2508]
[1736495222915,5.1,192.63,192.53,3.2508]
[1736495223123,2.5965,192.6,192.53,3.2508]
[1736495223714,2.5962,192.62,192.55,2.597]
[1736495224114,16.5887863,192.64,192.53,3.2508]
[1736495224319,21.6887863,192.67,192.53,3.2508]
[1736495224519,21.6887863,192.67,192.54,1.613]
[1736495225320,21.6887863,192.67,192.56,2.5968]
[1736495225813,21.6887863,192.67,192.54,1.613]
[1736495225814,21.6887863,192.67,192.57,2.5968]
[1736495226015,21.6687863,192.7,192.54,18.2017863]
[1736495226420,2.5954,192.68,192.6,2.5963]
[1736495226816,2.5954,192.68,192.54,18.2017863]
[1736495227020,2.5954,192.68,192.6,2.5963]
[1736495227322,5.08,192.71,192.54,18.2017863]
[1736495227522,5.08,192.71,192.62,2.5961]
[1736495227722,16.5887863,192.73,192.62,2.5961]
[1736495227923,21.6687863,192.73,192.62,2.5961]
[1736495228124,16.5887863,192.73,192.62,2.5961]
[1736495228317,16.5887863,192.73,192.64,2.5958]
[1736495228318,2.595,192.71,192.64,2.5958]
[1736495229920,16.5887863,192.76,192.7,2.595]
[1736495230121,16.5887863,192.79,192.63,16.5887863]
[1736495230429,16.5887863,192.79,192.64,4.7832]
[1736495230628,16.5887863,192.76,192.64,7.3789]
[1736495230827,16.5887863,192.73,192.64,4.7832]
[1736495231133,2.5953,192.69,192.64,3.2028]
[1736495232128,2.5949,192.72,192.64,5.7985]
[1736495232434,2.5949,192.72,192.64,3.2028]
[1736495232823,7.6946,192.74,192.67,2.5954]
[1736495234333,5.1,192.74,192.64,3.2028]
[1736495234535,5.08,192.81,192.66,16.5887863]
[1736495234731,5.08,192.81,192.67,1.5444]
[1736495235435,22.4879863,192.82,192.67,1.5444]
[1736495235836,17.4079863,192.82,192.67,1.5444]
[1736495236336,2.5939,192.79,192.72,2.5948]
[1736495236937,17.4079863,192.82,192.72,2.5948]
[1736495237139,2.594,192.78,192.67,1.5444]
[1736495237340,2.594,192.78,192.71,2.5949]
[1736495237834,2.5944,192.75,192.68,2.5952]
[1736495238141,16.5887863,192.76,192.67,1.5444]
[1736495238447,16.5887863,192.73,192.64,3.2028]
[1736495238837,16.5887863,192.76,192.64,3.2028]
[1736495239146,16.5887863,192.76,192.67,2.5954]
[1736495239435,16.5887863,192.79,192.64,3.2028]
[1736495239639,17.4079863,192.82,192.66,16.5887863]
[1736495239836,16.5887863,192.82,192.67,1.597]
[1736495240039,16.5887863,192.85,192.69,16.5887863]
[1736495240237,16.5887863,192.85,192.7,5.08]
[1736495240631,17.4064863,192.88,192.77,2.594]
[1736495241436,2.5931,192.85,192.77,2.594]
[1736495241742,17.4064863,192.88,192.77,2.594]
[1736495242038,17.4064863,192.88,192.7,5.08]
[1736495242039,2.5933,192.84,192.7,5.08]
[1736495242444,16.5887863,192.88,192.72,16.5887863]
[1736495242637,2.5928,192.87,192.73,3.2195]
[1736495242832,16.5887863,192.88,192.73,3.2195]
[1736495243034,2.5926,192.89,192.75,16.5887863]
[1736495243234,2.5926,192.89,192.76,1.5903]
[1736495243439,2.5926,192.89,192.83,2.5933]
[1736495243642,16.5887863,192.91,192.76,1.5903]
[1736495243942,2.5926,192.88,192.76,1.5903]
[1736495244436,16.5887863,192.94,192.76,1.5903]
[1736495244643,16.5887863,192.94,192.84,2.5932]
[1736495244839,16.5887863,192.91,192.79,5.08]
[1736495245035,16.5887863,192.91,192.76,1.5903]
[1736495245343,2.5935,192.82,192.76,1.5903]
[1736495245545,16.5887863,192.85,192.76,1.5903]
[1736495245845,16.5887863,192.85,192.76,4.1845]
[1736495246152,2.5933,192.84,192.76,1.5903]
[1736495246342,16.5887863,192.85,192.74,2.5944]
[1736495246543,2.5938,192.8,192.73,3.2195]
[1736495246742,16.5887863,192.82,192.73,3.2195]
[1736495247349,16.5887863,192.82,192.71,2.5949]
[1736495248143,2.5941,192.77,192.71,2.5949]
[1736495248846,2.594,192.78,192.71,2.5949]
[1736495249148,16.5887863,192.82,192.74,2.5945]
[1736495249445,16.5887863,192.85,192.7,1.529]
[1736495249945,2.5936,192.81,192.74,2.5944]
[1736495250645,2.5937,192.8,192.74,2.5944]
[1736495251845,2.5934,192.83,192.77,2.594]
[1736495252142,21.6687863,192.88,192.72,16.5887863]
[1736495252346,16.5887863,192.91,192.75,16.5887863]
[1736495252544,16.5887863,192.91,192.76,3.0869]
[1736495252948,5.08,192.9,192.76,3.0869]
[1736495253153,21.6687863,192.91,192.76,3.0869]
[1736495254252,2.5928,192.87,192.76,3.0869]
[1736495254646,2.5928,192.87,192.81,2.5935]
[1736495254846,16.5887863,192.94,192.78,16.5887863]
[1736495255153,16.5887863,192.96,192.85,2.5929]
[1736495258250,2.5922,192.92,192.85,2.5929]
[1736495258656,2.5924,192.9,192.83,2.5932]
[1736495259153,5.08,192.97,192.85,2.5929]
[1736495259454,16.5887863,192.95,192.81,16.5887863]
[1736495259747,5.06,192.98,192.87,2.5926]
[1736495260344,5.06,192.98,192.88,2.5926]
[1736495260751,2.5918,192.94,192.81,16.5887863]
[1736495261058,16.5887863,192.97,192.81,16.5887863]
[1736495262456,21.6287863,192.97,192.79,6.6965]
[1736495262758,16.5887863,192.91,192.79,1.6365]
[1736495263057,16.5887863,192.88,192.76,3.0869]
[1736495263244,21.6487863,192.88,192.76,5.681]
[1736495263445,16.5887863,192.85,192.76,3.0869]
[1736495263644,2.5934,192.83,192.76,5.6811]
[1736495263845,16.5887863,192.85,192.76,5.6811]
[1736495264046,21.6487863,192.88,192.76,5.6811]
[1736495264651,21.6487863,192.88,192.76,4.1803]
[1736495264848,0.8134,192.87,192.77,2.5941]
[1736495265654,16.5887863,192.86,192.77,2.5941]
[1736495265860,2.5932,192.84,192.76,4.1803]
[1736495266360,2.5932,192.84,192.77,2.5941]
[1736495266556,2.5933,192.83,192.76,1.5861]
[1736495267263,2.5933,192.83,192.77,2.5941]
[1736495268666,2.5932,192.85,192.78,2.5939]
[1736495268959,16.5887863,192.86,192.76,1.5861]
[1736495269156,32.1887863,193.0,192.76,1.5861]
[1736495269157,16.5887863,192.92,192.76,1.5861]
[1736495269462,16.5887863,192.95,192.78,16.5887863]
[1736495269662,5.04,192.94,192.79,1.5038]
[1736495269863,2.5921,192.93,192.86,2.5928]
[1736495270059,5.04,192.94,192.79,1.5038]
[1736495270363,2.5922,192.91,192.85,2.5929]
[1736495270865,5.04,192.94,192.79,1.5038]
[1736495271265,5.04,192.94,192.84,2.5932]
[1736495271664,5.04,192.94,192.79,1.5038]
[1736495271866,2.5922,192.91,192.85,2.5929]
[1736495272061,5.04,192.94,192.79,1.5038]
[1736495272455,2.5925,192.9,192.79,1.5038]
[1736495272660,5.04,192.94,192.79,1.5038]
[1736495273365,2.5926,192.89,192.84,2.5931]
[1736495276469,2.5926,192.88,192.84,2.5931]
[1736495276762,16.5887863,192.86,192.79,28.2008591]
[1736495277268,16.5887863,192.86,192.76,104.9782566]
[1736495277269,16.5887863,192.86,192.76,1.5861]
[1736495277769,2.5934,192.83,192.77,2.5941]
[1736495280368,2.5938,192.79,192.73,2.5946]
[1736495280572,16.5887863,192.8,192.7,6.98855077]
[1736495280868,2.5942,192.77,192.7,9.58345077]
[1736495281067,16.5887863,192.77,192.7,6.98855077]
[1736495281269,16.5887863,192.74,192.7,6.98855077]
[1736495281573,2.5949,192.71,192.67,6.98855077]
[1736495281868,16.5887863,192.74,192.67,6.98855077]
[1736495282465,16.5887863,192.68,192.6,6.98855077]
[1736495283069,2.5957,192.65,192.6,6.98855077]
[1736495283267,16.5887863,192.68,192.54,16.5887863]
[1736495283473,5.0,192.7,192.57,16.5887863]
[1736495283677,5.0,192.7,192.63,2.5959]
[1736495284276,5.0,192.7,192.6,2.5963]
[1736495284476,5.0,192.7,192.57,16.5887863]
[1736495285177,21.6087863,192.77,192.6,16.5887863]
[1736495285377,16.5887863,192.77,192.61,1.6066]
[1736495285575,16.5887863,192.77,192.62,1.5841]
[1736495285773,16.5887863,192.74,192.62,1.5841]
[1736495286171,2.5947,192.73,192.66,2.5956]
[1736495286370,2.5947,192.73,192.62,1.5841]
[1736495286570,16.5887863,192.74,192.62,1.5841]
[1736495286767,2.5943,192.76,192.68,2.5953]
[1736495286970,0.8131,192.79,192.64,16.5887863]
[1736495287175,16.5887863,192.8,192.64,16.5887863]
[1736495288282,2.5941,192.77,192.64,16.5887863]
[1736495288681,16.5887863,192.8,192.69,2.5951]
[1736495288682,2.5943,192.76,192.69,2.5951]
[1736495289384,2.5941,192.77,192.7,2.595]
[1736495289582,16.5887863,192.8,192.66,16.5887863]
[1736495289782,16.5887863,192.8,192.72,2.5947]
[1736495289783,2.594,192.78,192.72,2.5947]
[1736495291780,16.5887863,192.8,192.66,21.6087863]
[1736495291983,16.5887863,192.8,192.66,5.02]
[1736495292381,2.5944,192.76,192.7,2.595]
[1736495292776,16.5887863,192.8,192.66,5.02]
[1736495292981,2.5942,192.76,192.69,2.595]
[1736495293182,16.5887863,192.8,192.69,2.595]
[1736495293382,16.5887863,192.8,192.66,5.02]
[1736495293582,2.5941,192.77,192.71,2.5949]
[1736495293884,16.5887863,192.8,192.63,18.1101863]
[1736495294083,16.5887863,192.77,192.63,1.5214]
[1736495294488,2.5948,192.72,192.65,2.5957]
[1736495295180,2.5948,192.72,192.66,2.5955]
[1736495295385,16.5887863,192.77,192.63,1.5214]
[1736495295579,16.5887863,192.74,192.63,1.5214]
[1736495295779,16.5887863,192.74,192.63,4.1173]
[1736495296087,16.5887863,192.71,192.62,1.5841]
[1736495297188,2.5952,192.7,192.64,2.5958]
[1736495297385,16.5887863,192.67,192.5,117.46774833]
[1736495297585,16.5887863,192.67,192.54,3.1618]
[1736495298191,16.5887863,192.7,192.54,3.1618]
[1736495298692,21.5887863,192.73,192.56,16.5887863]
[1736495298990,2.5951,192.7,192.64,2.5958]
[1736495299392,2.5949,192.71,192.65,2.5957]
[1736495299792,5.0,192.73,192.59,16.5887863]
[1736495299992,7.5946,192.73,192.67,2.5954]
[1736495300393,16.5887863,192.76,192.62,16.5887863]
[1736495300588,2.5942,192.77,192.71,2.5949]
[1736495301089,2.594,192.78,192.65,16.5887863]
[1736495301288,5.0,192.8,192.65,16.5887863]
[1736495301690,7.5938,192.8,192.72,2.5946]
[1736495301889,5.0,192.8,192.72,2.5946]
[1736495302185,16.5887863,192.79,192.67,2.5954]
[1736495302593,16.5887863,192.76,192.63,4.5601]
[1736495302896,2.5947,192.73,192.66,2.5956]
[1736495303096,16.5887863,192.76,192.63,4.5601]
[1736495303297,17.4038863,192.79,192.63,4.5601]
[1736495303496,2.5942,192.77,192.71,2.5949]
[1736495303998,17.4038863,192.79,192.69,2.5951]
[1736495304293,5.0,192.8,192.63,4.5601]
[1736495304797,2.594,192.78,192.63,4.5601]
[1736495305899,2.594,192.78,192.72,2.5946]
[1736495306097,2.594,192.78,192.63,4.5601]
[1736495306697,2.594,192.79,192.73,2.5946]
[1736495306893,16.5887863,192.85,192.68,16.5887863]
[1736495307299,21.5687863,192.85,192.68,16.5887863]
[1736495307502,2.5935,192.82,192.73,2.5946]
[1736495307797,21.5687863,192.85,192.68,21.5487863]
[1736495308195,2.5936,192.81,192.68,21.5487863]
[1736495308700,2.5936,192.81,192.76,2.5942]
[1736495309501,16.5887863,192.91,192.8,2.5937]
[1736495309801,17.4017863,192.94,192.77,16.5887863]
[1736495310098,2.5924,192.9,192.77,16.5887863]
[1736495310300,22.3617863,192.94,192.77,16.5887863]
[1736495310603,22.3617863,192.94,192.75,4.6291]
[1736495310604,2.5931,192.85,192.75,4.6291]
[1736495310802,16.5887863,192.88,192.75,4.6291]
[1736495311193,2.5935,192.82,192.76,2.5941]
[1736495311499,21.5487863,192.85,192.75,3.0366]
[1736495311702,21.5487863,192.85,192.75,1.5173]
[1736495311902,16.5887863,192.76,192.7,10.11245077]
[1736495312096,16.5887863,192.76,192.7,8.51795077]
[1736495312293,19.1831863,192.76,192.7,1.5294]
[1736495312493,16.5887863,192.79,192.7,1.5294]
[1736495313103,16.5887863,192.79,192.66,1.4846]
[1736495313606,2.5944,192.75,192.66,1.4846]
[1736495313903,16.5887863,192.79,192.66,1.4846]
[1736495314104,2.594,192.78,192.7,2.595]
[1736495314301,16.5887863,192.79,192.66,1.4846]
[1736495314499,16.5887863,192.82,192.66,1.4846]
[1736495315504,2.5939,192.79,192.66,1.4846]
[1736495315806,16.5887863,192.82,192.66,1.4846]
[1736495316007,2.5943,192.76,192.7,2.595]
[1736495316603,16.5887863,192.79,192.66,1.4846]
[1736495316806,16.5887863,192.76,192.66,4.0801]
[1736495317002,16.5887863,192.76,192.66,1.4846]
[1736495317203,16.5887863,192.76,192.62,1.4891]
[1736495317405,16.5887863,192.73,192.62,1.4891]
[1736495318105,16.5887863,192.76,192.62,1.4891]
[1736495318509,2.5944,192.75,192.7,2.595]
[1736495318700,2.5944,192.75,192.63,16.5887863]
[1736495319099,2.5944,192.75,192.69,2.5951]
[1736495319709,5.02,192.77,192.63,16.5887863]
[1736495320002,16.5887863,192.76,192.68,2.5953]
[1736495320408,16.5887863,192.76,192.62,1.4891]
[1736495320611,16.5887863,192.76,192.67,2.5954]
[1736495320903,2.5948,192.72,192.62,1.4891]
[1736495321104,16.5887863,192.76,192.65,2.5956]
[1736495321319,16.5887863,192.76,192.62,1.4891]
[1736495322012,2.5946,192.73,192.67,2.5954]
[1736495322713,16.5887863,192.76,192.62,1.4891]
[1736495322914,2.5951,192.7,192.62,1.4891]
[1736495323108,16.5887863,192.73,192.62,1.4891]
[1736495323311,16.5887863,192.7,192.61,1.5327]
[1736495323710,16.5887863,192.7,192.58,5.21181102]
[1736495324016,5.02,192.69,192.58,5.21181102]
[1736495324221,16.5887863,192.67,192.58,5.21181102]
[1736495324419,19.1843863,192.67,192.58,5.21181102]
[1736495324922,2.5959,192.64,192.56,1.6118]
[1736495325218,16.5887863,192.64,192.55,1.6152]
[1736495325919,16.5887863,192.64,192.55,4.2123]
[1736495326118,5.02,192.69,192.52,1.6118]
[1736495326319,16.5887863,192.58,192.5,7.05616517]
[1736495326514,16.5887863,192.58,192.48,1.5571]
[1736495326817,2.5973,192.53,192.47,2.5981]
[1736495327010,16.5887863,192.55,192.47,2.5981]
[1736495327214,16.5887863,192.55,192.46,28.22466069]
[1736495327820,16.5887863,192.55,192.42,1.5571]
[1736495328219,2.5977,192.51,192.42,4.1558]
[1736495328635,2.5977,192.51,192.42,1.5571]
[1736495328821,2.5977,192.51,192.43,2.5987]
[1736495329124,16.5887863,192.52,192.42,1.5571]
[1736495329323,16.5887863,192.52,192.44,2.5985]
[1736495329522,16.5887863,192.52,192.4,3.0527]
[1736495329720,2.5979,192.49,192.4,3.0527]
[1736495330221,16.5887863,192.49,192.4,1.5741]
[1736495330416,16.5887863,192.49,192.36,1.5435]
[1736495330824,21.6087863,192.52,192.36,1.5435]
[1736495331525,24.2062863,192.52,192.43,2.5986]
[1736495331915,21.6087863,192.52,192.36,1.5435]
[1736495332616,21.6087863,192.52,192.39,2.5991]
[1736495332617,16.5887863,192.49,192.39,2.5991]
[1736495333022,16.5887863,192.49,192.36,1.5435]
[1736495333023,19.1870863,192.46,192.38,2.5993]
[1736495333526,19.1870863,192.46,192.36,1.5435]
[1736495334326,19.1870863,192.46,192.39,2.5992]
[1736495334527,16.5887863,192.43,192.24,12.27725098]
[1736495334723,16.5887863,192.43,192.35,2.5997]